bitfinex/quotes_ETHUSD_20250929
["timestamp","ask_amount","ask_price","bid_price","bid_amount"]
[1759108850254,0.001,4141.4,4141.1,3.2829]
[1759108850682,0.001,4141.4,4141.2,0.2259]
[1759108851982,0.001,4141.4,4141.2,0.6827]
[1759108852181,0.001,4141.4,4141.3,0.2259]
[1759108854295,0.001,4141.4,4141.3,3.2829]
[1759108854787,0.001,4141.4,4141.3,3.057]
[1759108855379,0.001,4141.4,4141.3,6.17854769]
[1759108855590,0.001,4141.4,4141.3,3.7397]
[1759108855795,0.001,4141.4,4141.3,3.056]
[1759108856092,0.001,4141.4,4141.3,3.2819]
[1759108856465,0.001,4141.4,4141.3,3.7387]
[1759108856874,0.001,4141.4,4141.3,3.2819]
[1759108859392,0.001,4141.4,4141.0,0.5768]
[1759108859561,0.2317,4141.4,4141.0,0.12]
[1759108859763,0.2317,4141.4,4141.1,3.056]
[1759108859996,0.001,4141.4,4141.0,0.12]
[1759108860172,0.792,4141.2,4139.3,5.51461341]
[1759108860373,2.41492602,4141.0,4139.9,2.41549309]
[1759108860573,3.6679,4141.1,4140.0,0.2259]
[1759108860773,0.6679,4141.1,4140.1,3.5128]
[1759108860984,0.6679,4141.0,4140.2,3.056]
[1759108861205,2.41505059,4140.7,4140.2,3.056]
[1759108861407,0.2307,4140.6,4140.2,3.056]
[1759108862010,0.2307,4140.5,4140.2,3.056]
[1759108862380,0.4372,4140.7,4140.2,3.056]
[1759108862704,0.6679,4140.7,4140.2,3.056]
[1759108862915,0.6679,4140.7,4139.3,2.41584791]
[1759108862916,3.08305036,4140.6,4139.2,0.2259]
[1759108863081,2.41551158,4140.0,4139.2,0.2259]
[1759108863278,3.0,4140.5,4139.2,0.2259]
[1759108863279,2.41529174,4140.3,4139.3,5.47185661]
[1759108863483,2.64604627,4140.2,4139.3,5.47185661]
[1759108863684,2.64604627,4140.2,4139.3,5.69775661]
[1759108863923,2.64604627,4140.2,4139.4,2.4157971]
[1759108864281,2.41540059,4140.1,4139.3,5.6977657]
[1759108864518,2.41540059,4140.1,4139.4,2.41580317]
[1759108864806,0.2307,4140.2,4139.4,2.41580317]
[1759108864807,2.6460435,4140.2,4139.4,2.41580317]
[1759108866192,2.6460435,4140.2,4139.5,2.41574299]
[1759108866907,2.6460435,4140.2,4139.4,2.41576088]
[1759108867110,0.2307,4140.2,4139.5,2.41571971]
[1759108867304,2.64605447,4140.2,4139.4,2.41579471]
[1759108867612,2.41552818,4139.9,4139.3,3.2819]
[1759108867795,2.41547306,4140.0,4139.3,3.2819]
[1759108867997,0.2307,4139.9,4139.3,3.056]
[1759108868312,2.64621836,4139.9,4139.4,3.056]
[1759108868550,0.2307,4139.9,4139.5,2.41574802]
[1759108869244,0.2307,4139.9,4139.4,3.056]
[1759108869546,0.2307,4139.9,4139.4,3.2972]
[1759108870145,0.2307,4139.9,4139.4,6.1454935]
[1759108870312,3.0,4140.7,4139.8,4.76188442]
[1759108870515,0.2322,4141.2,4140.4,4.76188442]
[1759108870709,5.41481731,4141.1,4140.4,8.05908442]
[1759108870913,5.41481731,4141.1,4140.4,3.2972]
[1759108871343,3.0,4141.1,4140.4,3.2972]
[1759108871550,3.0,4141.1,4140.5,0.02415167]
[1759108871852,2.41482376,4141.1,4140.6,0.2412]
[1759108872226,3.0,4141.3,4140.6,0.2412]
[1759108872227,2.41477543,4141.2,4140.6,0.2412]
[1759108873024,3.0,4141.3,4140.6,0.2412]
[1759108874452,2.414759,4141.2,4140.6,0.2412]
[1759108874750,3.0,4141.1,4140.4,3.056]
[1759108874954,3.2336,4141.1,4140.4,3.056]
[1759108875144,3.0,4141.3,4140.5,0.2306]
[1759108875453,0.2336,4141.2,4140.5,3.2866]
[1759108875952,2.41486563,4141.1,4140.5,3.2866]
[1759108876163,2.41586563,4141.1,4140.5,3.2866]
[1759108876332,2.41487673,4141.0,4140.5,3.2866]
[1759108876538,2.64847673,4141.0,4140.5,3.2866]
[1759108877028,0.2336,4141.0,4140.5,3.2866]
[1759108877229,2.41493665,4140.9,4140.5,3.056]
[1759108877523,2.64849082,4141.0,4140.5,3.056]
[1759108877737,0.2336,4141.0,4140.5,3.056]
[1759108877941,0.001,4141.1,4140.6,0.2306]
[1759108878139,2.41581938,4141.1,4140.6,0.2306]
[1759108878463,2.41581938,4141.1,4140.5,3.4908]
[1759108878759,0.2336,4141.0,4140.5,3.4908]
[1759108879062,0.2336,4141.0,4140.5,3.7214]
[1759108879226,2.64849142,4141.0,4140.5,3.7214]
[1759108879427,2.41495135,4140.9,4140.5,3.7214]
[1759108879642,0.2336,4141.0,4140.5,0.2306]
[1759108879843,0.2336,4140.9,4140.5,3.056]
[1759108880463,0.2336,4140.8,4140.5,3.056]
[1759108880761,2.41488692,4141.0,4140.5,3.056]
[1759108880963,2.41583611,4141.1,4140.5,3.056]
[1759108881164,2.41582526,4141.1,4140.6,0.6654]
[1759108881363,0.001,4141.1,4140.7,0.2306]
[1759108881861,0.001,4141.1,4140.5,3.056]
[1759108882047,0.001,4141.1,4140.8,0.6654]
[1759108883047,0.001,4141.1,4141.0,4.76188442]
[1759108883269,0.001,4141.1,4140.9,3.7204]
[1759108883465,0.001,4141.1,4140.9,3.2856]
[1759108883771,0.001,4141.1,4140.7,3.055]
[1759108883961,0.2346,4141.1,4140.7,3.055]
[1759108884468,0.001,4141.1,4140.8,3.08038487]
[1759108884646,0.001,4141.1,4140.8,0.6654]
[1759108885255,0.001,4141.1,4140.8,0.2306]
[1759108885659,0.001,4141.1,4140.8,2.64559125]
[1759108885861,0.001,4141.1,4140.8,0.2306]
[1759108887190,0.001,4141.1,4140.7,3.055]
[1759108887535,0.001,4141.1,4140.7,5.70061546]
[1759108887734,0.001,4141.1,4140.6,0.12]
[1759108888036,0.6611,4141.0,4140.4,3.055]
[1759108888358,3.07598487,4141.0,4140.4,3.055]
[1759108888935,3.07598487,4141.0,4139.6,0.4348]
[1759108888936,2.41528649,4140.3,4139.6,0.4348]
[1759108889142,2.41528649,4140.3,4139.7,3.055]
[1759108889143,0.2336,4140.3,4139.7,3.055]
[1759108889381,0.2336,4140.3,4139.8,3.055]
[1759108889538,2.64894225,4140.2,4139.8,3.055]
[1759108889939,0.6611,4140.5,4139.8,3.2856]
[1759108890182,2.41538328,4140.2,4139.8,3.2856]
[1759108890380,3.0,4140.3,4139.8,3.2856]
[1759108890540,2.41541054,4140.1,4139.8,3.2856]
[1759108890741,2.41540157,4140.1,4139.8,3.2856]
[1759108891012,3.2336,4140.3,4139.8,3.2856]
[1759108891194,2.41539533,4140.2,4139.8,3.2856]
[1759108891695,0.2336,4140.2,4139.6,4.76188442]
[1759108891995,2.64898813,4140.2,4139.8,3.055]
[1759108892372,2.41540081,4140.1,4139.8,3.055]
[1759108892574,2.41549141,4140.0,4139.8,3.055]
[1759108892773,2.41535705,4140.2,4139.8,3.055]
[1759108892774,0.2336,4140.2,4139.8,3.055]
[1759108892973,2.41551038,4140.0,4139.8,3.055]
[1759108893170,0.2336,4140.1,4139.6,4.76188442]
[1759108893373,0.6611,4140.0,4139.5,3.055]
[1759108893580,2.41564169,4139.7,4139.5,3.055]
[1759108893783,2.41569233,4139.6,4139.5,3.055]
[1759108894308,2.64924944,4139.7,4139.5,3.055]
[1759108894505,0.2336,4139.7,4139.5,3.055]
[1759108894693,2.41552792,4139.9,4139.5,3.2856]
[1759108894899,3.055,4140.3,4139.8,0.002]
[1759108895205,2.41541491,4140.1,4139.8,0.2326]
[1759108895387,2.41541491,4140.1,4139.8,0.002]
[1759108895584,3.2336,4140.2,4139.8,0.002]
[1759108895821,0.6611,4140.0,4139.8,0.002]
[1759108896118,2.41551728,4139.9,4139.8,0.002]
[1759108896487,6.07661728,4139.9,4139.8,0.002]
[1759108896880,5.64911728,4139.9,4139.8,0.002]
[1759108897392,6.07661728,4139.9,4139.8,0.002]
[1759108897581,3.0,4139.9,4139.8,0.002]
[1759108897773,3.0,4139.9,4139.8,0.2326]
[1759108899494,3.0,4139.9,4139.8,0.002]
[1759108899895,3.0,4140.2,4139.8,0.002]
[1759108900702,5.65545578,4140.2,4139.8,0.002]
[1759108900910,3.2401,4140.2,4139.8,0.002]
[1759108901590,2.41540651,4140.1,4139.8,0.002]
[1759108901821,3.0,4140.2,4139.8,0.002]
[1759108902018,3.0,4140.2,4139.9,0.2339]
[1759108902739,6.20706423,4140.7,4139.8,0.02615575]
[1759108902938,4.0321,4140.7,4140.0,0.2339]
[1759108903112,2.41532447,4140.3,4140.0,0.2339]
[1759108904132,2.41535094,4140.2,4140.0,0.2339]
[1759108904336,2.41535094,4140.2,4139.8,0.002]
[1759108904517,0.2401,4140.5,4139.8,0.002]
[1759108904717,2.41532448,4140.3,4139.9,0.6838]
[1759108904924,2.41532448,4140.3,4139.9,0.2339]
[1759108905430,2.65527038,4140.5,4139.9,0.2339]
[1759108905431,0.2401,4140.5,4139.9,0.2339]
[1759108905728,2.41534264,4140.2,4139.9,0.2339]
[1759108906160,2.41529439,4140.3,4139.9,0.2339]
[1759108906864,0.2401,4140.5,4139.9,0.2339]
[1759108907162,5.41527112,4140.4,4139.9,0.2339]
[1759108907361,2.65537112,4140.4,4139.9,0.2339]
[1759108907861,0.4365,4140.6,4139.8,0.002]
[1759108908162,2.41526678,4140.4,4140.0,0.6838]
[1759108908350,2.41534242,4140.2,4140.0,0.2339]
[1759108908552,2.41534242,4140.2,4139.8,0.2359]
[1759108909025,2.65532986,4140.4,4139.8,0.4519]
[1759108909366,2.41528735,4140.3,4139.9,0.02415517]
[1759108909566,2.41535945,4140.2,4139.8,0.6858]
[1759108909930,2.41528954,4140.3,4139.8,0.2359]
[1759108910254,2.41528954,4140.3,4139.8,0.6858]
[1759108910559,2.41534917,4140.2,4139.8,0.6858]
[1759108910864,5.41534917,4140.2,4139.8,0.2359]
[1759108911052,3.0,4140.2,4139.8,0.2359]
[1759108911254,3.0,4140.2,4139.9,0.2339]
[1759108911656,3.0,4140.2,4139.9,0.6838]
[1759108911850,3.0,4140.2,4139.9,0.4499]
[1759108912164,3.0,4140.2,4140.0,0.2339]
[1759108912831,3.0,4140.2,4139.8,0.002]
[1759108913026,5.41534539,4140.2,4139.8,0.2359]
[1759108913771,3.2401,4140.2,4139.8,0.2359]
[1759108913956,3.2411,4140.2,4139.8,0.2359]
[1759108914156,5.65645833,4140.2,4139.8,0.2359]
[1759108914752,5.41635833,4140.2,4139.8,0.002]
[1759108915037,0.2401,4140.1,4139.8,0.002]
[1759108915562,0.2401,4140.0,4139.8,0.002]
[1759108915859,0.6766,4140.0,4139.8,0.002]
[1759108916041,3.0,4140.1,4139.8,0.002]
[1759108916760,2.41543593,4140.1,4139.8,0.002]
[1759108916938,0.2401,4140.0,4139.8,0.002]
[1759108917140,0.6766,4140.0,4139.8,0.002]
[1759108917447,0.4365,4139.9,4139.8,0.002]
[1759108917651,0.001,4140.2,4139.8,0.6858]
[1759108917847,3.001,4140.2,4139.9,0.2339]
[1759108918252,0.001,4140.2,4139.9,0.2339]
[1759108918436,0.001,4140.2,4139.9,0.6838]
[1759108919031,0.001,4140.2,4140.0,4.76188442]
[1759108919236,0.001,4140.2,4140.1,5.49355459]
[1759108919442,0.001,4140.2,4140.1,6.15320059]
[1759108919749,0.001,4140.2,4140.1,6.27320059]
[1759108921536,0.001,4140.2,4140.1,0.3539]
[1759108921733,0.001,4140.2,4140.1,5.82330059]
[1759108921960,0.001,4140.2,4140.1,6.27320059]
[1759108925266,0.001,4140.2,4140.1,5.82330059]
[1759108926335,0.001,4140.2,4140.1,6.27320059]
[1759108928283,0.6776,4140.2,4139.8,0.002]
[1759108928609,0.4365,4140.1,4139.8,0.002]
[1759108928754,0.4365,4140.1,4139.9,3.054]
[1759108928955,0.6708,4140.0,4139.9,3.054]
[1759108929584,0.6708,4140.0,4139.8,0.002]
[1759108929881,6.08631728,4139.9,4139.8,0.002]
[1759108930381,6.87831728,4139.9,4139.8,0.002]
[1759108936259,14.42943328,4139.9,4139.8,0.002]
[1759108936587,9.79391728,4139.9,4139.8,0.002]
[1759108938388,10.55633728,4139.9,4139.8,0.002]
[1759108939085,9.81790328,4139.9,4139.8,0.002]
[1759108939690,9.86630328,4139.9,4139.8,0.002]
[1759108939986,9.12234628,4139.9,4139.8,0.002]
[1759108940182,11.205111,4139.9,4139.8,0.002]
[1759108941394,13.03709276,4139.9,4139.8,0.002]
[1759108941695,0.792,4139.7,4139.3,0.002]
[1759108941989,2.41580905,4139.4,4139.3,0.002]
[1759108942360,6.09190905,4139.4,4139.3,0.002]
[1759108942567,6.88390905,4139.4,4139.3,0.002]
[1759108943001,7.26292021,4139.4,4139.3,0.002]
[1759108943288,10.43981126,4139.4,4139.3,0.002]
[1759108943492,12.52798794,4139.4,4139.3,0.002]
[1759108944876,8.67499689,4139.4,4139.3,0.002]
[1759108945078,9.64082021,4139.4,4139.3,0.002]
[1759108945301,9.87622021,4139.4,4139.3,0.002]
[1759108946304,9.64082021,4139.4,4139.3,0.002]
[1759108946507,9.64082021,4139.4,4139.3,0.6717]
[1759108946684,9.64082021,4139.4,4139.3,0.2313]
[1759108946888,9.64082021,4139.4,4139.3,0.002]
[1759108947287,10.8561708,4139.4,4139.3,0.002]
[1759108947493,11.0915708,4139.4,4139.3,0.002]
[1759108947676,10.8561708,4139.4,4139.3,0.002]
[1759108948704,10.47715964,4139.4,4139.3,0.002]
[1759108952922,10.47715964,4139.4,4139.3,0.2313]
[1759108953221,10.47715964,4139.4,4139.3,0.002]
[1759108953832,6.63115964,4139.4,4139.3,0.2313]
[1759108954126,8.46980905,4139.4,4139.3,0.2313]
[1759108954284,8.46980905,4139.4,4139.3,0.002]
[1759108954986,8.46980905,4139.4,4139.3,0.2313]
[1759108955493,5.41580905,4139.4,4139.3,0.6717]
[1759108956619,8.46980905,4139.4,4139.3,0.002]
[1759108956779,9.2529595,4139.4,4139.3,0.002]
[1759108958005,9.2529595,4139.4,4139.3,0.2313]
[1759108959399,9.2529595,4139.4,4139.3,0.7051]
[1759108959400,3.0,4139.4,4139.3,0.7051]
[1759108959726,2.41560072,4139.8,4139.3,0.7051]
[1759108960030,2.41560072,4139.8,4139.4,0.702]
[1759108960235,5.41653228,4139.9,4139.5,0.702]
[1759108960436,3.001,4139.9,4139.6,0.702]
[1759108960619,5.41654093,4139.9,4139.3,0.002]
[1759108960929,5.41654093,4139.9,4139.7,0.702]
[1759108960930,0.001,4139.9,4139.7,0.702]
[1759108961142,0.001,4139.9,4139.4,5.62804258]
[1759108961143,0.001,4139.9,4139.8,0.702]
[1759108964933,0.001,4139.9,4139.4,0.3482]
[1759108965103,0.001,4139.9,4139.5,0.2282]
[1759108965303,0.001,4139.9,4139.3,0.002]
[1759108965304,0.73759,4139.9,4139.3,0.002]
[1759108965517,2.41580905,4139.4,4139.3,0.002]
[1759108965716,3.20780905,4139.4,4139.3,0.002]
[1759108966017,3.45570905,4139.4,4139.3,0.002]
[1759108966456,6.26080905,4139.4,4139.3,0.002]
[1759108968949,10.86966981,4139.4,4139.3,0.002]
[1759108980257,13.41866981,4139.4,4139.3,0.002]
[1759108980427,10.86966981,4139.4,4139.3,0.002]
[1759108981055,12.32266981,4139.4,4139.3,0.002]
[1759108982571,11.87706981,4139.4,4139.3,0.002]
[1759108983679,11.62916981,4139.4,4139.3,0.002]
[1759108984277,11.87706981,4139.4,4139.3,0.002]
[1759108984894,12.32266981,4139.4,4139.3,0.002]
[1759108985080,11.87706981,4139.4,4139.3,0.002]
[1759108986250,16.64248576,4139.4,4139.3,0.002]
[1759108986679,17.08808576,4139.4,4139.3,0.002]
[1759108987075,16.64248576,4139.4,4139.3,0.002]
[1759108987277,17.08808576,4139.4,4139.3,0.002]
[1759108988769,16.62018576,4139.4,4139.3,0.002]
[1759108990489,8.57616981,4139.4,4139.3,0.002]
[1759108990683,8.46780905,4139.4,4139.3,0.7253]
[1759108991256,9.25980905,4139.4,4139.3,0.7253]
[1759108991469,8.46780905,4139.4,4139.3,0.7253]
[1759108992161,8.46780905,4139.4,4139.3,0.2503]
[1759108992588,8.46780905,4139.4,4139.3,0.7253]
[1759108996362,3.0,4139.4,4139.3,0.7253]
[1759108999371,3.0,4139.4,4139.3,0.002]
[1759108999712,3.0,4139.4,4139.3,0.6996]
[1759109000716,5.41580905,4139.4,4139.3,0.002]
[1759109001680,5.41580905,4139.4,4139.3,0.2424]
[1759109002007,5.41580905,4139.4,4139.3,0.6996]
[1759109002384,5.41580905,4139.4,4139.3,0.002]
[1759109004012,5.65910905,4139.4,4139.3,0.002]
[1759109004214,6.77179197,4139.4,4139.3,0.002]
[1759109005118,9.44909197,4139.4,4139.3,0.002]
[1759109008612,5.41580905,4139.4,4139.3,0.6996]
[1759109009001,2.41580905,4139.4,4139.3,0.6996]
[1759109009327,5.41580905,4139.4,4139.3,0.6996]
[1759109010580,5.41580905,4139.4,4139.3,0.002]
[1759109010795,6.88340905,4139.4,4139.3,0.002]
[1759109011113,8.59506356,4139.4,4139.3,0.002]
[1759109013200,13.12764256,4139.4,4139.3,0.002]
[1759109013798,10.97046356,4139.4,4139.3,0.002]
[1759109015426,11.64606356,4139.4,4139.3,0.002]
[1759109016201,13.09906356,4139.4,4139.3,0.002]
[1759109019645,21.78926356,4139.4,4139.3,0.002]
[1759109019955,20.78926356,4139.4,4139.3,0.002]
[1759109020667,18.94918656,4139.4,4139.3,0.002]
[1759109021241,12.42346356,4139.4,4139.3,0.002]
[1759109021625,9.37246356,4139.4,4139.3,0.002]
[1759109021832,10.71080905,4139.4,4139.3,0.6775]
[1759109022027,5.41580905,4139.4,4139.3,0.002]
[1759109022329,8.46580905,4139.4,4139.3,0.2401]
[1759109022534,9.25780905,4139.4,4139.3,0.002]
[1759109023169,13.467525,4139.4,4139.3,0.002]
[1759109023469,14.259525,4139.4,4139.3,0.002]
[1759109023670,17.44624951,4139.4,4139.3,0.002]
[1759109026495,17.90334951,4139.4,4139.3,0.002]
[1759109026800,30.38189451,4139.4,4139.3,0.002]
[1759109027397,26.19779551,4139.4,4139.3,0.002]
[1759109027765,31.20079551,4139.4,4139.3,0.002]
[1759109028766,40.94585751,4139.4,4139.3,0.002]
[1759109028967,36.00457151,4139.4,4139.3,0.002]
[1759109029784,40.94585751,4139.4,4139.3,0.002]
[1759109031704,38.92037574,4139.4,4139.3,0.002]
[1759109031907,38.30099274,4139.4,4139.3,0.002]
[1759109032507,37.63875974,4139.4,4139.3,0.002]
[1759109032804,37.63875974,4139.4,4138.9,0.002]
[1759109032805,7.66104252,4139.0,4138.9,1e-08]
[1759109033012,24.83427447,4139.0,4138.9,1e-08]
[1759109033199,26.78777847,4139.0,4138.9,1e-08]
[1759109033600,26.88472995,4139.0,4138.9,1e-08]
[1759109034310,18.89683095,4139.0,4138.9,1e-08]
[1759109034480,21.27992687,4139.0,4138.9,1e-08]
[1759109035718,10.14108992,4139.0,4138.9,1e-08]
[1759109036020,13.19108992,4139.0,4138.9,0.67550001]
[1759109036179,6.86904252,4139.0,4138.9,0.67550001]
[1759109036378,9.91904252,4139.0,4138.9,0.67550001]
[1759109037105,10.71104252,4139.0,4138.9,0.67550001]
[1759109041134,6.20804252,4139.0,4138.9,0.67550001]
[1759109041297,5.41604252,4139.0,4138.9,0.67550001]
[1759109043639,6.50424317,4139.0,4138.9,1e-08]
[1759109044322,5.41604252,4139.0,4138.9,1e-08]
[1759109044925,6.20804252,4139.0,4138.9,1e-08]
[1759109045649,6.20804252,4139.0,4137.2,0.4374]
[1759109045650,2.41703526,4137.3,4137.2,0.4374]
[1759109045857,2.41703526,4137.3,4137.2,0.6755]
[1759109046006,9.25803526,4137.3,4137.2,0.6755]
[1759109046539,3.0,4137.3,4137.2,0.6755]
[1759109047146,5.41703526,4137.3,4137.2,0.6755]
[1759109049438,5.41703526,4137.3,4137.2,0.6695]
[1759109049646,0.792,4137.1,4135.4,5.51921815]
[1759109049830,2.41740757,4136.7,4136.3,0.472]
[1759109050030,2.41740757,4136.7,4136.4,0.2321]
[1759109050341,3.049,4136.8,4136.5,0.472]
[1759109050547,3.049,4136.8,4135.5,2.41808619]
[1759109050548,0.792,4136.7,4135.9,0.472]
[1759109050719,2.41767806,4136.2,4135.9,0.472]
[1759109050925,2.41767806,4136.2,4136.0,0.472]
[1759109051246,5.46667806,4136.2,4134.2,3.0]
[1759109051415,0.72737588,4136.7,4135.6,5.99121815]
[1759109051611,0.72737588,4136.7,4136.0,5.51921815]
[1759109051816,0.69,4136.9,4136.1,3.12182396]
[1759109052015,3.0,4137.0,4136.2,0.6629]
[1759109052249,3.0,4137.0,4136.0,7.93700146]
[1759109052250,5.41722198,4137.0,4136.3,0.6629]
[1759109052426,1.2561,4137.6,4136.4,0.68707561]
[1759109052427,3.0,4136.8,4136.4,0.68707561]
[1759109052628,3.049,4136.9,4136.5,0.6629]
[1759109052823,3.0,4136.8,4136.2,2.41763755]
[1759109053042,3.049,4136.9,4136.3,3.08047212]
[1759109053230,3.049,4136.9,4136.3,0.6629]
[1759109053554,3.049,4136.9,4136.4,0.6629]
[1759109053735,3.049,4136.9,4136.5,0.6629]
[1759109053921,3.049,4136.9,4136.6,0.6629]
[1759109054119,3.049,4136.9,4136.7,0.6629]
[1759109054446,3.049,4136.9,4136.8,0.6629]
[1759109055442,5.46626941,4136.9,4136.1,0.2293]
[1759109055751,2.41741659,4136.7,4136.1,0.2293]
[1759109055941,5.46644456,4136.6,4136.2,0.4336]
[1759109056142,3.049,4136.6,4136.3,0.2293]
[1759109056454,3.05,4136.6,4136.4,0.6629]
[1759109056652,3.59673291,4136.6,4136.0,0.002]
[1759109056859,2.41767974,4136.2,4136.0,0.002]
[1759109057032,3.05,4136.2,4136.0,0.002]
[1759109057372,3.05,4136.2,4136.1,0.6629]
[1759109061845,3.05,4136.2,4136.0,0.002]
[1759109062045,3.05,4136.2,4136.1,0.2293]
[1759109062269,3.05,4136.2,4136.1,0.6629]
[1759109062440,3.05,4136.2,4136.0,0.002]
[1759109062640,3.05,4136.1,4136.0,0.002]
[1759109063367,3.05,4136.1,4136.0,0.2313]
[1759109063539,3.05,4136.1,4136.0,0.6649]
[1759109064848,3.05,4136.1,4136.0,0.002]
[1759109065335,3.05,4136.1,4136.0,0.2313]
[1759109066156,3.05,4136.1,4136.0,0.002]
[1759109066357,3.05,4136.1,4136.0,0.2313]
[1759109066758,0.72738647,4136.6,4136.0,0.6649]
[1759109066961,0.37923654,4137.3,4136.1,0.68707736]
[1759109067162,0.37923654,4137.3,4136.0,0.002]
[1759109067163,3.77725246,4137.2,4136.2,0.6629]
[1759109067474,0.792,4137.0,4136.0,0.2313]
[1759109067642,6.2807,4136.9,4136.1,0.4336]
[1759109067838,8.69798292,4136.9,4136.2,0.2293]
[1759109068471,3.05,4136.8,4136.3,2.8753958]
[1759109068664,3.05,4136.8,4136.4,0.6629]
[1759109068866,3.05,4136.8,4136.5,0.6629]
[1759109069675,3.05,4136.8,4136.5,0.2293]
[1759109069875,3.05,4136.8,4136.0,2.41979009]
[1759109069876,0.72725246,4137.2,4136.6,0.6629]
[1759109070091,3.0,4137.0,4136.6,0.6629]
[1759109070252,3.0,4137.0,4136.7,0.6629]
[1759109070452,3.0,4137.0,4136.7,0.4336]
[1759109070666,3.0,4137.0,4136.7,0.6629]
[1759109072198,3.0,4137.0,4136.8,0.2293]
[1759109072494,3.05,4137.3,4137.1,2.41709408]
[1759109072676,3.05,4137.3,4137.2,0.2293]
[1759109072984,3.05,4137.3,4136.7,0.1208]
[1759109072985,3.0,4137.3,4137.0,2.41720901]
[1759109073184,3.0,4137.3,4137.1,0.2293]
[1759109073481,3.0,4137.3,4137.1,0.6629]
[1759109073676,3.0,4137.3,4137.2,0.2293]
[1759109076072,3.0,4137.3,4136.8,0.2293]
[1759109076276,3.2307,4137.3,4136.8,0.2293]
[1759109076563,3.2307,4137.3,4136.8,3.08021805]
[1759109076762,3.2307,4137.3,4136.8,2.41731805]
[1759109076964,3.0,4137.3,4136.9,3.08015519]
[1759109077280,3.0,4137.3,4137.0,0.6629]
[1759109077691,3.0,4137.3,4137.0,3.08010491]
[1759109077902,3.0,4137.3,4137.0,2.85080491]
[1759109078066,3.0,4137.3,4137.1,0.2293]
[1759109078267,3.0,4137.3,4137.1,2.64645019]
[1759109078653,3.0,4137.3,4137.1,0.2293]
[1759109078969,3.0,4137.3,4137.1,2.64645155]
[1759109079277,3.0,4137.3,4137.1,3.09785155]
[1759109079479,3.0,4137.3,4137.1,0.6807]
[1759109081179,3.0,4137.3,4137.1,3.09783533]
[1759109081498,3.0,4137.3,4137.1,0.2293]
[1759109081696,3.0,4137.3,4137.0,2.41719397]
[1759109082060,3.0,4137.3,4137.0,2.66239397]
[1759109082776,3.0,4137.3,4137.0,0.2452]
[1759109082973,3.0,4137.3,4136.7,0.1208]
[1759109083297,3.0,4137.1,4136.1,4.596]
[1759109083461,3.0,4136.9,4136.2,2.4176717]
[1759109083661,0.2414,4136.8,4136.1,0.1208]
[1759109083862,2.41749107,4136.6,4136.0,0.002]
[1759109084081,3.4911,4136.7,4136.0,0.002]
[1759109084294,3.049,4136.7,4136.0,0.002]
[1759109084502,3.049,4136.7,4136.0,0.2472]
[1759109084696,5.46642443,4136.7,4136.0,0.2472]
[1759109085007,5.46639348,4136.7,4136.0,2.66499136]
[1759109085165,2.41744945,4136.6,4136.0,0.2472]
[1759109086060,2.41756116,4136.4,4136.0,0.002]
[1759109086466,2.65896116,4136.4,4136.0,0.002]
[1759109088504,5.70796116,4136.4,4136.0,0.002]
[1759109088903,0.2414,4136.3,4136.0,0.002]
[1759109089390,2.41773651,4136.1,4136.0,0.002]
[1759109089613,5.46673651,4136.1,4136.0,0.002]
[1759109089768,6.15023651,4136.1,4136.0,0.002]
[1759109090826,3.2904,4136.1,4136.0,0.002]
[1759109091021,5.70813651,4136.1,4136.0,0.002]
[1759109091384,6.15023651,4136.1,4136.0,0.002]
[1759109093795,5.70813651,4136.1,4136.0,0.002]
[1759109093997,3.2904,4136.1,4136.0,0.002]
[1759109094922,5.70813651,4136.1,4136.0,0.002]
[1759109095297,6.15023651,4136.1,4136.0,0.002]
[1759109095824,6.96028478,4136.1,4136.0,0.002]
[1759109096600,9.96028478,4136.1,4136.0,0.002]
[1759109096999,10.20548478,4136.1,4136.0,0.002]
[1759109097201,10.99748478,4136.1,4136.0,0.002]
[1759109101111,12.45048478,4136.1,4136.0,0.002]
[1759109102516,15.13494678,4136.1,4136.0,0.002]
[1759109102698,12.00838478,4136.1,4136.0,0.002]
[1759109102903,12.45048478,4136.1,4136.0,0.002]
[1759109107001,25.53303778,4136.1,4136.0,0.002]
[1759109107206,25.30708678,4136.1,4136.0,0.002]
[1759109107440,20.40829278,4136.1,4136.0,0.002]
[1759109107626,19.77010278,4136.1,4136.0,0.002]
[1759109107825,17.28648478,4136.1,4136.0,0.002]
[1759109108144,12.45048478,4136.1,4136.0,0.002]
[1759109108646,9.40148478,4136.1,4136.0,0.002]
[1759109108805,12.44678478,4136.1,4136.0,0.002]
[1759109109006,11.76698478,4136.1,4136.0,0.002]
[1759109109254,12.00808478,4136.1,4136.0,0.002]
[1759109109553,12.44648478,4136.1,4136.0,0.002]
[1759109110840,12.00808478,4136.1,4136.0,0.002]
[1759109111340,11.76698478,4136.1,4136.0,0.002]
[1759109112341,12.00808478,4136.1,4136.0,0.002]
[1759109112538,10.31398478,4136.1,4136.0,0.002]
[1759109114041,3.792,4136.1,4136.0,0.6874]
[1759109114252,2.41760561,4136.4,4136.0,0.6874]
[1759109114436,3.049,4136.3,4136.1,0.6854]
[1759109114636,6.049,4136.3,4136.2,0.6854]
[1759109115157,8.46661961,4136.3,4136.2,0.6854]
[1759109115749,6.049,4136.3,4136.2,0.6854]
[1759109116149,8.46661961,4136.3,4136.2,0.6854]